bitfinex-derivatives/quotes_SOLF0:USTF0_20241203
["timestamp","ask_amount","ask_price","bid_price","bid_amount"]
[1733243902399,10.52284946,223.11,223.04,1.1298639]
[1733243902601,10.52284946,223.11,223.0,21.29]
[1733243902801,10.52284946,223.11,223.01,1.12971836]
[1733243903001,10.52284946,223.11,223.0,20.0]
[1733243903301,10.52284946,223.11,223.01,1.12952512]
[1733243903501,10.52284946,223.11,223.02,1.12952512]
[1733243903705,10.52284946,223.11,223.0,20.0]
[1733243903903,10.52284946,223.11,223.01,1.12856309]
[1733243904100,10.52284946,223.04,222.85,1.2415276]
[1733243904404,10.52284946,222.97,222.86,4.06884542]
[1733243904607,2.8,222.96,222.87,4.06884542]
[1733243904807,2.8,222.96,222.85,2.7281]
[1733243905303,2.8,222.96,222.89,2.2424]
[1733243905506,2.8,222.96,222.85,2.7281]
[1733243906106,2.8,222.95,222.87,10.52284946]
[1733243906304,2.8,222.94,222.88,1.3185]
[1733243906505,2.8,222.93,222.88,1.3185]
[1733243906712,10.52284946,223.03,222.9,10.52284946]
[1733243906713,0.659,222.94,222.9,10.52284946]
[1733243907004,2.8,222.96,222.91,1.79497113]
[1733243907307,10.52284946,223.03,222.92,1.79497113]
[1733243907608,2.8,223.02,222.93,18.78915315]
[1733243907808,2.8,223.01,222.94,1.79497113]
[1733243908106,2.8,223.01,222.89,18.23570962]
[1733243908298,2.8,223.01,222.94,2.2419]
[1733243908698,2.8,223.01,222.89,16.99418202]
[1733243908902,2.8,223.01,222.97,2.2416]
[1733243909505,2.8,223.01,222.89,16.99418202]
[1733243909709,16.99418202,223.08,222.9,1.79471391]
[1733243910001,2.8,223.07,222.91,1.79471391]
[1733243910207,2.8,223.07,222.93,16.99418202]
[1733243910506,2.8,223.06,223.04,2.2409]
[1733243910703,2.8,223.05,222.93,18.23056281]
[1733243910907,2.8,223.05,222.94,1.79425323]
[1733243911208,2.8,223.05,222.95,1.79425323]
[1733243911404,2.8,223.05,222.96,1.79425323]
[1733243911607,2.241,223.03,222.94,2.2419]
[1733243911808,2.241,223.03,222.95,1.79437928]
[1733243912012,2.241,223.03,222.89,16.99418202]
[1733243912509,5.0409,223.05,222.9,1.79443815]
[1733243912804,2.8,223.05,222.91,1.79443815]
[1733243913008,2.8,223.05,222.89,16.99418202]
[1733243913309,2.8,223.05,222.9,1.79485744]
[1733243913508,2.8,223.05,222.91,1.79485744]
[1733243913707,2.8,223.05,222.89,16.99418202]
[1733243913708,2.8,223.05,222.92,1.79485744]
[1733243913908,5.0408,223.05,222.89,16.99418202]
[1733243914302,2.2409,223.04,222.93,2.2419]
[1733243914515,2.2409,223.04,222.89,16.99418202]
[1733243914905,2.8,223.05,222.89,16.99418202]
[1733243915606,2.8,223.05,222.98,2.2415]
[1733243916305,2.8,223.05,222.89,16.99418202]
[1733243916504,2.8,223.05,222.9,1.12177998]
[1733243916706,2.8,223.05,222.97,2.2416]
[1733243916905,2.8,223.05,222.88,1.3185]
[1733243917107,2.8,223.05,222.89,1.12178599]
[1733243917306,2.8,223.05,222.9,1.12178599]
[1733243917509,2.8,223.05,222.88,1.3185]
[1733243917810,2.8,223.05,222.89,1.12179132]
[1733243918008,2.8,223.05,222.9,1.12179132]
[1733243918208,2.8,223.05,222.97,2.2415]
[1733243918504,2.8,223.05,222.88,1.3185]
[1733243918705,2.8,223.05,222.89,1.12179026]
[1733243918908,2.8,223.05,222.9,1.12179026]
[1733243919105,5.0408,223.05,222.88,1.3185]
[1733243919301,16.99418202,223.04,222.89,1.12179026]
[1733243919510,16.99418202,223.04,222.88,1.3185]
[1733243919709,2.2412,223.02,222.93,2.2419]
[1733243919904,16.99418202,223.04,222.88,1.3185]
[1733243920909,19.23508202,223.04,222.88,1.3185]
[1733243921708,16.99418202,223.04,222.98,2.2415]
[1733243922009,16.99418202,223.04,222.88,1.3185]
[1733243922214,2.8,223.03,222.99,2.2413]
[1733243922507,2.8,223.02,222.88,1.3185]
[1733243923406,2.8,223.02,222.95,2.2418]
[1733243923812,2.8,223.02,222.88,1.3185]
[1733243924305,2.8,223.03,222.91,16.99418202]
[1733243924525,2.8,223.02,222.92,1.12161535]
[1733243924711,2.8,223.03,222.91,16.99418202]
[1733243925218,2.8,223.03,222.88,1.3185]
[1733243926115,2.8,223.03,222.88,18.31268202]
[1733243926912,2.8,223.03,222.92,2.2421]
[1733243927112,2.8,223.03,222.88,18.31268202]
[1733243928110,2.2411,223.02,222.95,2.2418]
[1733243928508,2.2411,223.02,222.88,1.3185]
[1733243929315,2.2411,223.02,222.89,1.12198147]
[1733243929516,2.2411,223.02,222.88,1.3185]
[1733243929724,12.8695673,223.02,222.89,1.12198147]
[1733243929912,12.8695673,223.02,222.88,1.3185]
[1733243930112,10.6284673,223.02,222.89,1.12200102]
[1733243930308,10.6284673,223.02,222.95,2.2417]
[1733243930610,10.6284673,223.02,222.88,1.3185]
[1733243930813,10.6284673,223.02,222.89,1.12199346]
[1733243931013,10.6284673,223.02,222.9,1.12199346]
[1733243931315,10.6284673,223.02,222.91,1.12196802]
[1733243931616,10.6284673,223.02,222.88,1.3185]
[1733243931922,10.6284673,223.02,222.97,2.2416]
[1733243932513,10.6284673,223.02,222.88,1.3185]
[1733243932710,10.6284673,223.02,222.98,2.2415]
[1733243932916,10.6284673,223.02,222.88,1.3185]
[1733243933120,10.6284673,223.02,222.89,2.91710599]
[1733243933415,10.6284673,223.02,222.9,2.91710599]
[1733243933715,2.8,223.03,222.91,2.91707868]
[1733243933916,2.8,223.02,222.92,2.91699183]
[1733243934112,2.8,223.02,222.99,2.2413]
[1733243934316,2.8,223.01,222.9,10.6284673]
[1733243934617,2.8,223.01,222.93,10.6284673]
[1733243934809,2.8,223.01,223.0,2.2413]
[1733243938323,10.6284673,223.08,222.95,1.3873]
[1733243938519,2.8,223.07,222.96,11.75017977]
[1733243938716,2.8,223.06,222.97,1.2852]
[1733243939622,2.8,223.06,223.04,2.2409]
[1733243940324,2.8,223.05,222.97,1.2852]
[1733243940526,13.36,223.23,222.99,10.6284673]
[1733243940821,12.8681673,223.16,223.08,2.2405]
[1733243941022,10.6284673,223.16,223.02,10.6284673]
[1733243941327,2.2398,223.15,223.07,2.2406]
[1733243941518,2.2398,223.15,222.99,10.6284673]
[1733243941723,10.6284673,223.16,223.02,10.6284673]
[1733243942124,2.8,223.15,223.05,10.6284673]
[1733243942417,2.8,223.14,223.06,1.4086]
[1733243942621,2.8,223.14,223.06,2.821]
[1733243943423,2.8,223.14,223.12,2.24]
[1733243943926,2.8,223.14,223.06,2.821]
[1733243944128,2.8,223.14,223.13,2.24]
[1733243944724,2.8,223.14,223.06,2.821]
[1733243944925,2.8,223.14,223.07,1.12114182]
[1733243945226,2.8,223.14,223.08,1.12114182]
[1733243945429,2.8,223.14,223.06,1.4086]
[1733243945626,10.6284673,223.12,223.07,1.12119767]
[1733243945816,10.6284673,223.12,223.03,1.3619]
[1733243945817,12.8685673,223.12,223.05,2.2407]
[1733243946019,10.6284673,223.12,223.03,1.3619]
[1733243946222,10.6284673,223.12,223.04,1.12141061]
[1733243946523,10.6284673,223.12,223.03,1.3619]
[1733243948029,10.6284673,223.09,222.95,1.3924]
[1733243948230,2.8,223.08,223.04,2.2409]
[1733243948436,2.8,223.08,222.96,10.6284673]
[1733243948628,2.8,223.08,222.97,1.12156707]
[1733243948924,2.8,223.08,222.95,1.3924]
[1733243949128,2.8,223.08,222.96,1.12165032]
[1733243949440,10.6284673,223.06,222.95,1.3924]
[1733243950127,307.98975861,223.28,223.03,10.6284673]
[1733243950330,307.98975861,223.28,222.99,10.6284673]
[1733243950331,2.2391,223.22,223.14,2.2399]
[1733243950524,2.8,223.21,223.07,10.6284673]
[1733243951024,10.6284673,223.17,223.04,14.7723673]
[1733243951527,1.3575,223.2,223.04,21.12002235]
[1733243951728,2.8,223.21,223.04,21.12002235]
[1733243952235,5.0392,223.21,223.04,21.12002235]
[1733243952433,2.2392,223.21,223.04,21.12002235]
[1733243952729,2.8,223.2,223.04,21.12002235]
[1733243953033,2.8,223.2,223.13,2.2399]
[1733243953327,2.8,223.19,223.04,21.12002235]
[1733243953529,2.8,223.19,223.08,16.97612235]
[1733243954327,2.8,223.19,223.04,21.12002235]
[1733243954732,2.8,223.19,223.12,2.2401]
[1733243955033,2.8,223.19,223.04,21.12002235]
[1733243955232,2.8,223.19,223.09,2.2404]
[1733243955233,2.2396,223.17,223.09,2.2404]
[1733243955534,16.97612235,223.16,223.04,2.7664]
[1733243955729,2.2399,223.14,223.06,2.2406]
[1733243955939,2.78,223.13,222.97,1.3092]
[1733243956137,16.97612235,223.12,222.97,1.3092]
[1733243956432,18.27782235,223.12,222.97,1.3092]
[1733243957531,2.78,223.13,223.0,16.97612235]
[1733243958131,2.78,223.13,222.97,1.3092]
[1733243958535,5.0201,223.13,223.04,2.2408]
[1733243958734,2.78,223.13,222.97,1.3092]
[1733243959233,2.78,223.13,223.05,2.2407]
[1733243959737,5.0201,223.13,223.06,2.2407]
[1733243959934,2.78,223.13,222.95,21.15112235]
[1733243960456,2.78,223.13,223.05,2.2407]
[1733243960457,2.2401,223.12,223.05,2.2407]
[1733243960631,2.2401,223.12,222.95,21.15112235]
[1733243960829,16.97612235,223.11,222.95,21.15112235]
[1733243961030,16.97612235,223.11,222.95,4.175]
[1733243961537,1.3332,223.1,222.95,4.175]
[1733243961841,2.2405,223.08,222.99,2.2414]
[1733243962137,2.78,223.07,222.95,4.175]
[1733243962441,2.78,223.07,223.01,2.2412]
[1733243963842,2.78,223.07,223.02,2.2411]
[1733243964434,2.78,223.07,223.02,1.8724]
[1733243964639,21.99672235,223.07,223.02,1.8724]
[1733243965232,21.99672235,223.07,222.93,16.97612235]
[1733243965233,2.78,223.07,222.93,16.97612235]
[1733243965533,2.78,223.07,222.94,1.4182]
[1733243965943,2.78,223.07,223.03,2.2409]
[1733243966130,2.78,223.07,222.94,1.4182]
[1733243966539,2.78,223.07,223.04,2.2409]
[1733243966734,2.78,223.07,222.94,1.4182]
[1733243968031,2.78,223.07,223.03,2.241]
[1733243969239,5.0206,223.07,222.94,1.4182]
[1733243969844,2.78,223.07,222.94,1.4182]
[1733243970139,1.3332,223.1,222.94,1.4182]
[1733243970443,16.97612235,223.15,222.97,16.97612235]
[1733243970641,2.78,223.14,222.98,1.4204]
[1733243970836,5.0199,223.14,222.98,1.4204]
[1733243971442,2.78,223.13,223.09,2.2404]
[1733243971648,1.3768,223.2,223.03,10.61355891]
[1733243971649,10.61355891,223.17,223.03,10.61355891]
[1733243971947,10.61355891,223.17,223.04,2.8197]
[1733243971948,2.78,223.16,223.04,2.8197]
[1733243972446,2.78,223.16,223.06,10.61355891]
[1733243972648,2.78,223.16,223.12,2.24]
[1733243973545,2.78,223.15,223.14,2.2399]
[1733243974344,2.78,223.15,223.09,10.61355891]
[1733243974345,2.78,223.19,223.15,2.2397]
[1733243974845,2.78,223.19,223.09,10.61355891]
[1733243975547,2.78,223.19,223.07,11.94075891]
[1733243975747,2.78,223.19,223.07,1.3272]
[1733243976948,2.78,223.19,223.12,2.2401]
[1733243977947,2.78,223.19,223.07,1.3272]
[1733243978148,2.78,223.19,223.13,2.24]
[1733243978750,2.78,223.19,223.14,2.2399]
[1733243978956,2.78,223.19,223.07,1.3272]
[1733243979257,10.61355891,223.17,223.07,1.3272]
[1733243979652,10.61355891,223.14,223.07,1.3272]
[1733243979857,2.78,223.13,223.07,1.3272]
[1733243980151,5.02,223.13,223.07,1.3272]
[1733243980350,5.02,223.13,223.04,2.8197]
[1733243980351,2.78,223.13,223.04,1.3935]
[1733243980550,2.78,223.13,222.79,8.32012155]
[1733243980551,2.78,223.13,222.96,4.93534535]
[1733243980756,2.78,223.13,223.07,2.2405]
[1733243980960,5.0201,223.13,222.99,10.61355891]
[1733243981156,10.61355891,223.11,222.99,10.61355891]
[1733243981455,12.85385891,223.11,222.99,10.61355891]
[1733243981755,10.61355891,223.11,222.99,10.61355891]
[1733243982058,10.61355891,223.11,223.04,2.2409]
[1733243982059,2.2404,223.1,223.04,2.2409]
[1733243982446,2.2404,223.1,222.97,1.3716]
[1733243982660,2.2404,223.1,223.04,2.2409]
[1733243985350,2.2404,223.1,223.0,2.2412]
[1733243985555,2.2404,223.1,222.97,11.98515891]
[1733243985758,2.2404,223.1,222.97,10.61355891]
[1733243985949,10.61355891,223.11,222.97,10.61355891]
[1733243986153,2.2404,223.09,223.03,2.2409]
[1733243987864,10.61355891,223.08,223.04,2.2409]
[1733243988059,2.78,223.07,223.04,2.2409]
[1733243988257,2.78,223.07,223.03,2.241]
[1733243991160,2.78,223.06,223.03,2.241]
[1733243992363,2.78,223.06,223.01,2.2411]
[1733243992763,2.78,223.06,222.97,1.3133]
[1733243992958,5.0208,223.06,223.0,2.2413]
[1733243993367,10.61355891,223.05,222.97,1.3133]
[1733243993558,2.241,223.04,222.98,2.2414]
[1733243993768,10.61355891,223.05,222.97,1.3133]
[1733243994965,2.20179765,223.19,222.97,1.3133]
[1733243995167,10.61355891,223.09,222.97,11.92685891]
[1733243995367,2.78,223.08,222.97,11.92685891]
[1733243995968,2.78,223.1,223.06,2.2406]
[1733243996264,10.61355891,223.14,223.0,10.61355891]
[1733243996265,2.78,223.09,223.0,10.61355891]
[1733243996463,10.61355891,223.14,223.0,10.61355891]
[1733243996464,2.78,223.1,223.0,10.61355891]
[1733243997268,2.78,223.1,223.03,2.241]
[1733243997571,2.78,223.1,223.0,10.61355891]
[1733243998367,2.78,223.1,223.07,2.2406]
[1733243999166,2.78,223.1,223.03,10.61355891]
[1733243999471,2.78,223.14,223.06,10.61355891]
[1733243999673,2.78,223.14,223.07,2.6417]
[1733243999870,2.78,223.14,223.11,2.2401]
[1733244000269,2.78,223.14,223.07,2.6417]
[1733244000575,2.78,223.14,223.09,2.2404]
[1733244001269,46.66,223.21,223.09,10.61355891]
[1733244001473,2.78,223.2,223.1,1.3603]
[1733244001671,2.78,223.2,223.16,2.2397]
[1733244002174,38.45514106,223.27,223.1,1.3603]
[1733244002175,2.2383,223.3,223.18,10.61355891]
[1733244002374,2.78,223.31,223.21,10.61355891]
[1733244002576,2.78,223.3,223.21,10.61355891]
[1733244002769,2.78,223.34,223.27,2.2385]
[1733244002969,2.78,223.34,223.2,10.61355891]
[1733244002970,10.61355891,223.33,223.2,10.61355891]
[1733244003176,10.61355891,223.33,223.26,2.2387]
[1733244003373,2.78,223.34,223.2,10.61355891]
[1733244003672,2.78,223.34,223.23,10.61355891]
[1733244003870,307.98975861,223.45,223.26,10.61355891]
[1733244004080,10.61355891,223.43,223.29,10.61355891]
[1733244004370,1.3907,223.49,223.32,10.61355891]
[1733244004371,2.78,223.42,223.32,10.61355891]
[1733244004569,2.78,223.42,223.32,1.01459832]
[1733244005568,2.78,223.42,223.31,1.3532]
[1733244006066,2.78,223.42,223.35,2.2378]
[1733244006267,2.78,223.42,223.31,1.3532]
[1733244006670,2.78,223.42,223.34,2.2379]
[1733244006976,2.78,223.42,223.31,1.3532]
[1733244007370,16.93967795,223.48,223.31,1.3532]
[1733244007565,5.0166,223.47,223.31,1.3532]
[1733244007773,2.78,223.47,223.31,1.3532]
[1733244008769,2.78,223.47,223.33,16.93967795]
[1733244008977,2.2363,223.51,223.41,2.2372]
[1733244009166,16.93967795,223.52,223.33,16.93967795]
[1733244009372,2.78,223.51,223.37,16.93967795]
[1733244009770,2.78,223.51,223.42,2.237]
[1733244010279,2.78,223.51,223.37,16.93967795]
[1733244010872,2.78,223.51,223.41,2.2372]
[1733244011078,2.2364,223.49,223.33,16.93967795]
[1733244011279,2.78,223.51,223.33,16.93967795]
[1733244011579,2.2368,223.46,223.31,1.3532]
[1733244011780,16.93967795,223.48,223.31,1.3532]
[1733244011781,2.78,223.45,223.31,1.3532]
[1733244012371,2.78,223.45,223.33,16.93967795]
[1733244012577,2.78,223.45,223.43,2.237]
[1733244012778,2.78,223.45,223.33,16.93967795]
[1733244012779,2.78,223.49,223.33,16.93967795]
[1733244013178,2.78,223.49,223.43,2.237]
[1733244013478,2.78,223.49,223.33,16.93967795]
[1733244013977,47.9863,223.54,223.37,16.93967795]
[1733244014182,2.78,223.53,223.37,16.93967795]
[1733244014682,2.2361,223.52,223.37,16.93967795]
[1733244015082,2.2362,223.51,223.37,16.93967795]
[1733244015778,2.2362,223.51,223.43,2.237]
[1733244015979,2.2361,223.52,223.37,16.93967795]
[1733244016276,2.78,223.53,223.43,2.2369]
[1733244016482,16.93967795,223.52,223.43,2.2369]
[1733244016685,19.17587795,223.52,223.43,2.2369]
[1733244016983,19.17587795,223.52,223.33,16.93967795]
[1733244016984,16.93967795,223.52,223.33,16.93967795]
[1733244017400,2.2363,223.5,223.33,16.93967795]
[1733244017686,16.93967795,223.52,223.33,16.93967795]
[1733244017877,19.17587795,223.52,223.33,16.93967795]
[1733244018073,2.78,223.51,223.38,16.93967795]
[1733244018380,2.78,223.51,223.46,2.2366]
[1733244018984,2.78,223.51,223.39,2.2374]
[1733244019188,2.78,223.51,223.34,16.93967795]
[1733244019784,2.78,223.51,223.31,1.3532]
[1733244020483,16.93967795,223.48,223.31,1.3532]
[1733244020789,2.78,223.51,223.34,16.93967795]
[1733244020987,2.78,223.5,223.34,16.93967795]
[1733244022183,2.78,223.5,223.31,1.3532]
[1733244022384,2.78,223.5,223.38,16.93967795]
[1733244022585,2.78,223.5,223.39,1.3893]
[1733244022784,2.78,223.5,223.31,1.3532]
[1733244022785,16.93967795,223.48,223.31,1.3532]
[1733244022984,16.93967795,223.48,223.32,1.3009]
[1733244023188,2.2367,223.46,223.39,2.2374]
[1733244023588,19.17627795,223.48,223.4,2.2373]
[1733244023788,16.93967795,223.48,223.32,1.3009]
[1733244024685,16.93967795,223.52,223.33,16.93967795]
[1733244024887,2.78,223.51,223.37,16.93967795]
[1733244025588,2.78,223.52,223.37,16.93967795]
[1733244025896,2.78,223.52,223.41,16.93967795]
[1733244026090,2.78,223.52,223.45,2.2368]
[1733244026390,46.66,223.54,223.42,4.034]
[1733244026391,2.78,223.51,223.42,4.034]
[1733244027292,2.78,223.51,223.46,2.2367]
[1733244027795,2.78,223.51,223.47,2.2365]
[1733244028089,2.78,223.54,223.42,4.034]
[1733244028495,2.78,223.54,223.45,2.2367]
[1733244028790,2.78,223.54,223.42,4.034]
[1733244029289,2.78,223.54,223.48,2.2365]
[1733244030888,2.78,223.54,223.42,4.034]
[1733244031382,2.78,223.54,223.47,2.2365]
[1733244031583,2.78,223.54,223.42,4.034]
[1733244031892,5.0159,223.54,223.42,4.034]
[1733244032191,5.0159,223.54,223.48,2.2365]
[1733244032583,5.0159,223.54,223.42,4.034]
[1733244032584,2.2363,223.51,223.46,2.2367]
[1733244032787,2.78,223.54,223.46,2.2367]
[1733244033095,12.8147718,223.52,223.46,2.2366]
[1733244033491,12.8147718,223.52,223.42,4.034]
[1733244033685,12.8147718,223.52,223.46,2.2366]
[1733244033885,10.5785718,223.52,223.42,4.034]
[1733244034193,10.5785718,223.52,223.48,2.2364]
[1733244035196,2.78,223.54,223.42,4.034]
[1733244035393,10.5785718,223.52,223.42,4.034]
[1733244035790,2.2365,223.48,223.42,1.3415]
[1733244036095,2.78,223.47,223.35,13.3844718]
[1733244036291,2.78,223.46,223.35,14.7156718]
[1733244036490,13.3585718,223.46,223.35,4.1371]
[1733244036690,13.3585718,223.46,223.38,2.2375]
[1733244036887,15.5952718,223.46,223.35,4.1371]
[1733244037094,13.3585718,223.46,223.35,4.1371]
[1733244037388,13.3585718,223.46,223.41,2.2371]
[1733244037785,13.3585718,223.46,223.35,4.1371]
[1733244038592,15.5952718,223.46,223.35,4.1371]
[1733244039089,15.5952718,223.46,223.38,2.2375]
[1733244039396,15.5952718,223.46,223.35,4.1371]
[1733244039587,13.3585718,223.46,223.35,4.1371]
[1733244040290,13.3585718,223.46,223.41,2.2372]
[1733244040696,15.5953718,223.46,223.41,2.2372]
[1733244040995,13.3585718,223.46,223.41,2.2372]
[1733244041298,2.2368,223.45,223.4,2.2373]
[1733244041497,2.2368,223.45,223.35,4.1371]
[1733244041696,2.2368,223.45,223.4,2.2373]
[1733244041895,2.2368,223.45,223.35,4.1371]
[1733244042095,2.2368,223.45,223.36,1.11982645]
[1733244042297,2.2368,223.45,223.37,1.11982645]
[1733244042598,10.5785718,223.42,223.35,1.3312]
[1733244042793,10.5785718,223.42,223.29,1.3916]
[1733244042996,10.5785718,223.39,223.3,2.9118322]
[1733244043188,5.0176,223.38,223.31,1.11993546]
[1733244043393,5.0176,223.38,223.33,2.238]
[1733244044197,10.5785718,223.36,223.28,1.3079]
[1733244044401,10.5785718,223.36,223.29,2.91639158]
[1733244044596,10.5785718,223.36,223.3,1.12145321]
[1733244044902,10.5785718,223.36,223.29,2.2384]
[1733244045091,10.5785718,223.36,223.25,1.4209]
[1733244045297,10.5785718,223.36,223.26,1.12021212]
[1733244045612,10.5785718,223.36,223.25,1.4209]
[1733244045799,10.5785718,223.36,223.26,1.12024601]
[1733244045992,2.2378,223.35,223.29,2.2384]
[1733244046293,10.5785718,223.36,223.25,1.4209]
[1733244046492,2.2381,223.33,223.27,2.2386]
[1733244046700,2.76,223.32,223.25,1.4209]
[1733244046896,2.76,223.32,223.26,1.12028255]
[1733244047095,2.76,223.32,223.25,1.4209]
[1733244047403,2.76,223.32,223.26,1.12032121]
[1733244047597,2.76,223.32,223.27,2.2386]
[1733244047798,2.76,223.32,223.25,1.4209]
[1733244047999,2.76,223.32,223.26,1.12027517]
[1733244048201,2.76,223.32,223.26,2.2387]
[1733244049001,2.2382,223.31,223.26,2.2387]
[1733244049193,2.2382,223.31,223.25,1.4209]
[1733244049393,2.76,223.32,223.27,2.2386]
[1733244049591,4.9981,223.32,223.27,2.2386]
[1733244049899,2.76,223.32,223.25,1.4209]
[1733244050401,2.2383,223.31,223.25,1.4209]
[1733244050899,2.2383,223.31,223.26,2.2387]
[1733244051399,4.9981,223.32,223.26,2.2387]
[1733244052000,2.76,223.32,223.25,3.6597]
[1733244052490,2.76,223.32,223.25,1.4209]
[1733244052695,2.2383,223.31,223.25,3.6597]
[1733244053097,2.2383,223.3,223.25,3.6597]
[1733244053492,13.3385718,223.32,223.26,2.2387]
[1733244053692,13.3385718,223.32,223.25,1.4209]
[1733244054406,13.3385718,223.32,223.28,2.2385]
[1733244054592,10.5785718,223.32,223.28,2.2385]
[1733244054797,2.76,223.32,223.31,2.2381]
[1733244056003,2.76,223.32,223.3,2.2383]
[1733244056694,2.76,223.32,223.25,1.4209]
[1733244057004,4.9981,223.32,223.25,1.4209]
[1733244058299,2.76,223.32,223.21,10.5785718]
[1733244059099,10.5785718,223.29,223.2,1.3605]
[1733244059802,10.5785718,223.29,223.15,10.5785718]
[1733244060002,2.239,223.24,223.18,2.2395]
[1733244060205,2.76,223.23,223.15,10.5785718]
[1733244060402,2.76,223.23,223.12,10.5785718]
[1733244060597,2.76,223.23,223.19,2.2393]
[1733244060805,2.76,223.23,223.15,10.5785718]
[1733244061002,2.76,223.23,223.13,2.24]
[1733244061203,2.76,223.23,223.11,10.5785718]
[1733244062204,13.3385718,223.23,223.13,2.24]
[1733244062400,13.3385718,223.23,223.09,1.3123]
[1733244062908,13.3385718,223.23,223.13,2.2399]
[1733244063207,13.3385718,223.23,223.1,10.5785718]
[1733244063705,0.3809,223.29,223.1,10.5785718]
[1733244063706,10.5785718,223.26,223.1,10.5785718]
[1733244063906,2.76,223.25,223.13,10.5785718]
[1733244064205,2.76,223.25,223.16,10.5785718]
[1733244064410,2.76,223.25,223.17,1.345]
[1733244064904,2.76,223.25,223.19,2.2394]
[1733244065108,2.76,223.25,223.17,1.345]
[1733244065305,2.76,223.25,223.2,2.2393]
[1733244066104,2.76,223.25,223.19,2.2394]
[1733244066706,2.76,223.25,223.18,1.2889]
[1733244067311,2.76,223.25,223.2,2.2392]
[1733244067710,2.76,223.25,223.18,1.2889]
[1733244067908,2.76,223.25,223.23,2.2389]
[1733244068307,46.6,223.31,223.18,2.5978]
[1733244068515,4.9983,223.3,223.24,2.2389]
[1733244069011,2.76,223.3,223.19,10.5785718]
[1733244069217,2.76,223.3,223.22,10.5785718]
[1733244069417,10.5785718,223.35,223.22,10.5785718]
[1733244069619,2.76,223.34,223.28,2.2384]
[1733244070210,10.5785718,223.35,223.18,2.5978]
[1733244070211,10.5785718,223.38,223.18,2.5978]
[1733244070514,38.42212702,223.44,223.28,10.5785718]
[1733244070515,2.76,223.37,223.28,10.5785718]
[1733244070720,2.76,223.36,223.29,2.7437]
[1733244070912,2.76,223.37,223.29,4.1505]
[1733244071213,10.5785718,223.35,223.21,10.5785718]
[1733244071416,2.76,223.34,223.21,10.5785718]
[1733244072014,10.5785718,223.38,223.24,10.5785718]
[1733244072215,2.76,223.37,223.25,4.0207]
[1733244072419,10.5785718,223.41,223.27,10.5785718]
[1733244072626,2.76,223.4,223.27,10.5785718]
[1733244073919,4.9973,223.4,223.33,2.2379]
[1733244074118,2.76,223.4,223.33,2.2379]
[1733244074323,2.76,223.4,223.27,10.5785718]
[1733244074518,2.2374,223.39,223.32,2.2381]
[1733244074716,2.76,223.4,223.32,2.2381]
[1733244074928,2.76,223.4,223.27,10.5785718]
[1733244075428,10.5785718,223.38,223.25,4.0207]
[1733244076125,10.5785718,223.35,223.25,4.0207]
[1733244076325,2.76,223.34,223.25,4.0207]
[1733244076524,4.9979,223.34,223.25,4.0207]
[1733244077226,4.9979,223.34,223.27,2.2385]
[1733244077427,2.76,223.34,223.25,4.0207]
[1733244078921,2.76,223.34,223.3,2.2382]
[1733244079122,2.76,223.34,223.25,4.0207]
[1733244079322,2.76,223.33,223.25,4.0207]
[1733244079733,2.76,223.33,223.32,2.2381]
[1733244080026,10.5785718,223.38,223.32,2.2381]
[1733244080227,2.76,223.37,223.32,2.2381]
[1733244080927,2.76,223.37,223.31,2.2382]
[1733244081330,2.76,223.37,223.25,4.0207]
[1733244081532,2.76,223.37,223.32,2.238]